[Event "German Bundesliga 2023-24"]
[Site "Germany"]
[Date "2024.02.23"]
[Round "9.6"]
[White "Aditya Mittal"]
[Black "Jovanovic, Zoran"]
[Result "1-0"]
[ECO "E94"]
[WhiteElo "2588"]
[BlackElo "2513"]
[Annotator "TA"]
[PlyCount "89"]
[EventDate "2023.10.20"]
[EventType "team-tourn"]
[EventCountry "GER"]
[SourceTitle "playchess.com"]
[Source "ChessBase"]
[SourceQuality "1"]
[TimeControl "40/6000+30:3000+30"]

{[%evp 15,89,40,33,48,44,53,51,56,76,74,76,81,75,49,62,61,68,31,72,60,78,47,80,48,81,76,99,76,76,76,96,96,100,90,76,64,77,77,78,47,81,68,71,59,81,66,77,73,78,48,75,42,45,38,39,35,33,20,12,7,29,-9,655,647,631,670,668,641,929,920,1418,1151,29973,29971,5777,5493]} 1. d4 {[%emt 0:00:02]} d6 {[%emt 0:00:10]} 2. Nf3 {[%emt 0:00:01]} Nf6 {[%emt 0:01:17]} 3. c4 {[%emt 0:00:02]} g6 {[%emt 0:00:07]} 4. Nc3 {[%emt 0:00:01]} Bg7 {[%emt 0:00:07]} 5. e4 {[%emt 0:00:02]} O-O {[%emt 0:00:30]} 6. Be2 {[%emt 0:00:02]} e5 {[%emt 0:00:05]} 7. O-O {[%emt 0:00:02]} Bg4 {[%emt 0:03:45]} 8. d5 {[%emt 0:00:47]} a5 {[%emt 0:00:59]} 9. h3 {[%emt 0:00:13]} Bxf3 {[%emt 0:00:04]} 10. Bxf3 {[%emt 0:00:01]} Nbd7 {[%emt 0:00:04]} 11. Rb1 {[%emt 0:02:00] White is slightly better.} h5 {[%emt 0:09:30]} 12. Bg5 {[%emt 0:08:57]} Qc8 {[%emt 0:04:23]} 13. a3 {[%emt 0:05:33]} Nh7 {[%emt 0:02:43]} 14. Bd2 {[%emt 0:03:02][%cal Bg5d2,Bd2e1,Be1c3,Bc3b2][%mdl 32]} Bf6 {[%emt 0:02:25]} 15. b4 {[%emt 0:07:55]} Bg5 {[%emt 0:00:20]} 16. Be1 {[%emt 0:01:33]} h4 {[%emt 0:12:44]} 17. Nb5 {[%emt 0:04:53]} b6 {[%emt 0:03:47]} 18. Be2 {[%emt 0:05:15]} Qd8 {[%emt 0:06:42]} 19. Bd3 {[%emt 0:03:58]} Nhf6 {[%emt 0:02:05][%cal Bh7f6,Bf6h5,Bh5g7][%mdl 32]} 20. Bc3 {[%emt 0:12:01]} Nh5 {[%emt 0:08:16]} 21. Re1 {[%emt 0:01:24]} Kh7 {[%emt 0:03:26]} 22. Be2 {[%emt 0:07:48] White is much more active.} Ng7 {[%emt 0:04:04]} 23. Qc2 {[%emt 0:06:33]} f5 {[%emt 0:05:48]} 24. Bf3 {[%emt 0:03:46]} Bf4 {[%emt 0:06:17]} 25. Bb2 {[%emt 0:02:52]} Rf7 {[%emt 0:03:05]} 26. Kh1 {[%emt 0:01:48]} Kg8 {[%emt 0:03:00]} 27. Re2 {[%emt 0:01:43]} Kh7 {[%emt 0:04:23]} 28. Rg1 {[%emt 0:01:25]} Bh6 {[%emt 0:00:38]} 29. Ree1 {[%emt 0:06:55]} Bf4 {[%emt 0:06:08]} 30. Bc3 {[%emt 0:04:41]} Bh6 {[%emt 0:04:26]} 31. Rd1 {[%emt 0:03:05]} Bg5 {[%emt 0:01:04]} 32. Rb1 {[%emt 0:05:27]} Bf4 {[%emt 0:00:11]} 33. Qe2 {[%emt 0:00:58]} axb4 {[%emt 0:05:15]} 34. axb4 {[%emt 0:00:18]} Nf6 {[%emt 0:00:01]} 35. exf5 {[%emt 0:04:52]} gxf5 {[%emt 0:02:53]} 36. g3 {[%emt 0:01:55]} hxg3 {[%emt 0:01:07]} 37. fxg3 {[%emt 0:00:02][%cal Bf2g3,Bg3g4,Bg4g5][%mdl 32]} Bh6 {[%emt 0:00:08]} 38. g4 {[%emt 0:02:23]} (38. Qc2 {simplifies} Kh8 39. Ra1 Rxa1 40. Rxa1 Qg8 41. Kh2) 38... e4 $2 {[%emt 0:01:00][%mdl 8192] [#] A mistake that costs the game.} (38... fxg4 $11 39. hxg4 Bf4) 39. g5 $1 $18 {[%emt 0:02:45] aiming for g6+.} exf3 {[%emt 0:02:53]} 40. Qxf3 {[%emt 0:00:28]} Bxg5 {[%emt 0:03:44]} 41. Rxg5 {[%emt 0:50:05]} Nfe8 {[%emt 0:12:50]} 42. Qf4 {[%emt 0:00:00] Black is weak on the dark squares} Qe7 {[%emt 0:04:21]} 43. Re1 {[%emt 0:00:00]} Qf8 {[%emt 0:00:03]} 44. Qh4+ {[%emt 0:00:00]} Kg8 {[%emt 0:00:07]} 45. Rg6 {[%emt 0:00:00] Weighted Error Value: White=0.11 (very precise) /Black=0.41.  Loses game:     	---       	Black=1      Inaccurate:     	White=8     	Black=5      OK:         	White=7     	Black=12     Strong:       	White=1     	---} 1-0

[Event "German Bundesliga 2023-24"]
[Site "Germany"]
[Date "2024.02.23"]
[Round "9.7"]
[White "Kovacevic, Aleksandar"]
[Black "Pruijssers, Roeland"]
[Result "1/2-1/2"]
[ECO "C42"]
[WhiteElo "2445"]
[BlackElo "2539"]
[Annotator "TA"]
[PlyCount "51"]
[EventDate "2023.10.20"]
[EventType "team-tourn"]
[EventCountry "GER"]
[SourceTitle "playchess.com"]
[Source "ChessBase"]
[SourceQuality "1"]
[TimeControl "40/6000+30:3000+30"]

{[%evp 21,51,12,20,0,0,0,0,0,0,0,0,0,0,0,0,0,0,0,0,0,8,9,18,10,19,22,18,0,23,0,25,0]} 1. e4 {[%emt 0:00:17]} e5 {[%emt 0:00:09]} 2. Nf3 {[%emt 0:00:12]} Nf6 {[%emt 0:00:09]} 3. Nxe5 {[%emt 0:00:59]} d6 {[%emt 0:00:10]} 4. Nf3 {[%emt 0:00:12]} Nxe4 {[%emt 0:00:09]} 5. d4 {[%emt 0:00:38]} d5 {[%emt 0:00:08]} 6. Bd3 {[%emt 0:00:18]} Bd6 {[%emt 0:00:09]} 7. O-O {[%emt 0:00:36]} O-O {[%emt 0:00:09]} 8. c4 {[%emt 0:00:29]} c6 {[%emt 0:00:07]} 9. Nc3 {[%emt 0:00:21]} Nxc3 {[%emt 0:00:55]} 10. bxc3 {[%emt 0:00:04]} dxc4 {[%emt 0:00:38]} 11. Bxc4 {[%emt 0:00:07]} Bf5 {[%emt 0:00:07]} 12. Ng5 {[%emt 0:05:29] [#] aiming for g4.} h6 {[%emt 0:04:52]} 13. Qf3 {[%emt 0:00:38]} Bg6 {[%emt 0:00:20]} 14. Ne4 {[%emt 0:01:07] The position is equal.} Bxh2+ {[%emt 0:00:47]} 15. Kxh2 {[%emt 0:00:08] Hoping for Re1.} Qh4+ {[%emt 0:00:05]} 16. Qh3 {[%emt 0:00:11]} Qxh3+ {[%emt 0:01:06]} ({Much worse is} 16... Qxe4 $6 17. Ba3 Rd8 18. f4 $16) 17. gxh3 {[%emt 0:00:07][%cal Bg2h3,Bh3h4,Bh4h5][%mdl 32]} Bxe4 {[%emt 0:00:08]} 18. Rg1 {[%emt 0:00:08]} Re8 {[%emt 0:00:36]} 19. Bxh6 {[%emt 0:00:14]} g6 {[%emt 0:00:09]} 20. h4 {[%emt 0:03:38]} Nd7 {[%emt 0:02:47]} 21. h5 {[%emt 0:05:18]} Kh7 {[%emt 0:02:03]} 22. Be3 {[%emt 0:02:25]} Bd5 {[%emt 0:00:36]} 23. Bd3 {[%emt 0:03:39][%cal Oa1b1] Rab1! would now be deadly.} Be4 {[%emt 0:00:32]} 24. Bc4 {[%emt 0:02:56]} Bd5 {[%emt 0:00:31]} 25. Bd3 {[%emt 0:01:39]} Be4 {[%emt 0:01:26]} 26. Bc4 {[%emt 0:01:19] An uneventful encounter.   Weighted Error Value: White=0.06 (flawless) /Black=0.02 (flawless) .  OK:         	White=8     	Black=10     Best:        	---       	Black=1} 1/2-1/2

[Event "German Bundesliga 2023-24"]
[Site "Germany"]
[Date "2024.02.23"]
[Round "9.8"]
[White "Reuker, Jari"]
[Black "Zelcic, Robert"]
[Result "1-0"]
[ECO "E04"]
[WhiteElo "2403"]
[BlackElo "2476"]
[Annotator "TA"]
[PlyCount "61"]
[EventDate "2023.10.20"]
[EventType "team-tourn"]
[EventCountry "GER"]
[SourceTitle "playchess.com"]
[Source "ChessBase"]
[SourceQuality "1"]
[TimeControl "40/6000+30:3000+30"]

{[%evp 11,61,26,23,8,6,10,13,26,16,13,16,33,25,7,14,2,17,28,11,0,20,20,18,19,17,16,48,27,94,29,275,18,124,106,224,134,568,567,635,627,769,769,598,634,1422,1321,29973,29972,29990,29972,29969,29969]} 1. d4 {[%emt 0:00:03]} Nf6 {[%emt 0:00:16]} 2. c4 {[%emt 0:00:06]} e6 {[%emt 0:00:03]} 3. Nf3 {[%emt 0:00:08]} d5 {[%emt 0:00:05]} 4. g3 {[%emt 0:00:11]} dxc4 {[%emt 0:00:33]} 5. Bg2 {[%emt 0:00:09]} Bb4+ {[%emt 0:00:05]} 6. Bd2 {[%emt 0:00:10]} a5 {[%emt 0:00:07]} 7. a3 {[%emt 0:00:23]} Be7 {[%emt 0:00:52]} 8. Qa4+ {[%emt 0:03:58]} Nbd7 {[%emt 0:00:08]} 9. Qxc4 {[%emt 0:06:20] The position is equal.} c5 {[%emt 0:00:08]} 10. Nc3 {[%emt 0:13:15]} O-O {[%emt 0:01:09]} 11. dxc5 {[%emt 0:02:44]} Nxc5 {[%emt 0:00:06][%cal Ob7b5]} 12. Be3 {[%emt 0:06:34]} b6 {[%emt 0:00:45]} 13. Ne5 {[%emt 0:13:23][%cal Oe3c5] Black must now prevent Bxc5!} Ba6 {[%emt 0:02:59]} 14. Qa2 {[%emt 0:02:00][%cal Oe5c6]} Rc8 {[%emt 0:26:09]} 15. O-O $36 {[%emt 0:04:12][%mdl 2048] White has good play.} Qe8 {[%emt 0:09:59]} 16. b4 {[%emt 0:18:30]} Na4 {[%emt 0:11:04]} (16... Bd6 {simplifies} 17. Nxf7 Qxf7 18. bxc5 Bxc5 19. Bxc5 Rxc5 20. Qb2 b5) 17. Nxa4 {[%emt 0:01:08]} Qxa4 {[%emt 0:00:03]} 18. Bxb6 {[%emt 0:05:41]} Rc2 {[%emt 0:01:01]} 19. Qb1 {[%emt 0:02:32]} Bxe2 {[%emt 0:00:08] [#]} (19... Nd5 $11 {remains equal.} 20. Bxd5 (20. Bxa5 $2 Nc3 $19) 20... exd5) 20. Re1 {[%emt 0:08:52]} ({White should try} 20. Rc1 $1 $16 Rfc8 (20... Rxc1+ 21. Qxc1 Nd5 22. Nc6 $16) 21. Rxc2 Rxc2 22. Bxa5 (22. bxa5 Nd5 $14)) 20... Nd5 $2 {[%emt 0:00:19]} (20... Rfc8 $11 {and Black stays safe.}) 21. bxa5 $2 {[%emt 0:05:36]} (21. Be4 $18 Rfc8 22. Bxc2 Rxc2 23. Rc1 (23. Bxa5 Nc3 $11) (23. Ra2 Rxa2 24. Qxa2 Bxb4 $16)) 21... Bf6 {[%emt 0:16:13]} (21... Rfc8 $11 {keeps the balance.}) 22. Ra2 {[%emt 0:02:54][%cal Ba1a2,Ba2e2,Be2e8,Be8f8][%mdl 32]} Rfc8 {[%emt 0:26:16] [#]} (22... Rxa2 $16 {is a better defense.} 23. Qxa2 Nxb6) 23. Nd7 {[%emt 0:01:05]} (23. Rxe2 $2 Rc1+ 24. Re1 Rxb1 25. Rxb1 Nc3 $19 (25... Bxe5 $2 26. Bf3 $19)) ({Better is} 23. Rxc2 $1 $18 Rxc2 24. Bxd5 exd5 25. Nd7 (25. Rc1 Rxc1+ 26. Qxc1 h5 $15)) 23... Be7 $2 {[%emt 0:02:09][%mdl 8192]} (23... Rxa2 $16 24. Nxf6+ (24. Qxa2 Bb5 $18) 24... gxf6 25. Qxa2 Rc2) 24. Bxd5 $18 {[%emt 0:02:36]} (24. Rxe2 $2 {perishes.} Rc1+ 25. Re1 Rxb1 26. Rxb1 Nc3 $19 (26... Qxd7 $2 27. Rd2 $19)) (24. Nc5 R2xc5 25. Bxc5 (25. Raxe2 Nc3 $11) 25... Bc4 26. Bxd5 Bxa2 27. Qxa2 (27. Qb4 Qxb4 28. axb4 Bxc5 $19) 27... Bxc5 $14) 24... exd5 {[%emt 0:00:41]} 25. Nc5 {[%emt 0:01:53]} (25. Rxe2 $2 {loses.} Rc1+ (25... Bxa3 $2 {too greedy.} 26. Rexc2 Ra8 27. Nc5 $18) 26. Re1 Rxb1 27. Rxb1 Qxd7 $19) 25... R2xc5 {[%emt 0:10:27]} 26. Raxe2 {[%emt 0:02:45]} Bf8 {[%emt 0:01:07]} 27. Bxc5 {[%emt 0:00:12]} Rxc5 {[%emt 0:00:01]} 28. Re8 {[%emt 0:01:20]} Rb5 {[%emt 0:00:06]} 29. Qf5 {[%emt 0:01:29] White mates.} g6 {[%emt 0:00:50]} 30. Qc8 {[%emt 0:00:58]} Qxa3 {[%emt 0:00:48] [#]} 31. Rxf8+ $1 {[%emt 0:00:17][%mdl 512] Weighted Error Value: White=0.26 (precise) /Black=0.81.  Loses game:     	---       	Black=2      Missed win:     	White=1     	---        Mistake:       	White=2     	Black=3      Inaccurate:     	---       	Black=1      OK:         	White=8     	Black=4      Best:        	White=1     	Black=2} 1-0

[Event "German Bundesliga 2023-24"]
[Site "Germany"]
[Date "2024.02.23"]
[Round "9.9"]
[White "Santos Latasa, Jaime"]
[Black "Eljanov, Pavel"]
[Result "1/2-1/2"]
[ECO "C89"]
[WhiteElo "2615"]
[BlackElo "2695"]
[Annotator "TA"]
[PlyCount "111"]
[EventDate "2023.10.20"]
[EventType "team-tourn"]
[EventCountry "GER"]
[SourceTitle "playchess.com"]
[Source "ChessBase"]
[SourceQuality "1"]
[TimeControl "40/6000+30:3000+30"]

{[%evp 26,111,68,41,37,39,22,31,60,56,39,40,33,36,72,8,8,8,8,10,5,0,0,6,72,67,90,90,99,94,91,95,86,101,101,99,85,83,105,57,57,57,57,57,57,57,64,54,54,54,54,54,54,15,15,15,26,26,54,54,54,54,54,54,54,54,54,54,65,72,72,72,72,72,72,54,54,54,54,54,54,54,54,0,54,0,54,0]} 1. e4 {[%emt 0:00:03]} e5 {[%emt 0:00:07]} 2. Nf3 {[%emt 0:00:06]} Nc6 {[%emt 0:00:05]} 3. Bb5 {[%emt 0:00:05]} a6 {[%emt 0:00:10]} 4. Ba4 {[%emt 0:00:05]} Nf6 {[%emt 0:00:04]} 5. O-O {[%emt 0:00:10]} Be7 {[%emt 0:00:16]} 6. Re1 {[%emt 0:00:27]} b5 {[%emt 0:00:05]} 7. Bb3 {[%emt 0:00:05]} O-O {[%emt 0:00:05]} 8. c3 {[%emt 0:02:49]} d5 {[%emt 0:00:25]} 9. exd5 {[%emt 0:00:04]} Nxd5 {[%emt 0:00:04]} 10. Nxe5 {[%emt 0:00:09]} Nxe5 {[%emt 0:00:06]} 11. Rxe5 {[%emt 0:00:05]} Bb7 {[%emt 0:00:39]} 12. d4 {[%emt 0:00:06]} Bf6 {[%emt 0:00:16] C89: Closed Ruy Lopez: Marshall Attack.} 13. Re1 {[%emt 0:00:14]} Re8 {[%emt 0:00:20]} 14. Na3 {[%emt 0:00:49]} b4 {[%emt 0:01:33]} 15. cxb4 {[%emt 0:02:55]} Nxb4 {[%emt 0:02:06]} 16. Be3 {[%emt 0:02:17]} a5 {[%emt 0:06:41]} 17. Nb5 $146 {[%emt 0:02:57]} ({Predecessor:} 17. Rc1 Nd5 18. Nc4 Nxe3 19. Nxe3 Re7 20. Qh5 a4 21. Bc4 g6 22. Qb5 c6 23. Qb4 Qxd4 {1-0 Tsaruk,M (2334)-Matlakov,M (2671) Wch Rapid Almaty 2022 (7)}) 17... Nd5 {[%emt 0:10:22]} 18. Nc3 {[%emt 0:00:49]} Nxe3 {[%emt 0:12:56]} 19. fxe3 {[%emt 0:00:41]} c5 {[%emt 0:06:06] [#]} 20. Bxf7+ {[%emt 0:06:24]} (20. dxc5 $1 $16 {[%cal Ob3f7] Hoping for Bxf7+!} Qe7 (20... Bxc3 21. Qxd8) 21. Qd6) 20... Kxf7 $11 {[%emt 0:00:04]} 21. Qb3+ {[%emt 0:00:05]} (21. dxc5 $2 {perishes.} Qxd1 22. Raxd1 Bxc3 23. bxc3 Bc6 $19) 21... Kf8 $1 {[%emt 0:06:04]} 22. Qxb7 {[%emt 0:01:26]} cxd4 {[%emt 0:00:08]} 23. Nd5 {[%emt 0:12:45]} Rb8 {[%emt 0:00:56]} 24. Qc6 {[%emt 0:00:12]} Kg8 {[%emt 0:16:10]} (24... Be5 $1 $11) 25. Nxf6+ $16 {[%emt 0:14:28]} gxf6 {[%emt 0:01:32]} 26. Rad1 {[%emt 0:03:55]} (26. exd4 {simplifies} Rxe1+ 27. Rxe1 Qxd4+ 28. Kh1) 26... Qb6 {[%emt 0:06:14]} 27. Qd5+ {[%emt 0:08:13]} Qe6 {[%emt 0:01:11]} 28. Qxd4 {[%emt 0:01:07]} Rb4 {[%emt 0:02:15]} 29. Qc3 {[%emt 0:10:38]} Rc8 {[%emt 0:01:24]} 30. Qd2 {[%emt 0:00:15]} Qxa2 {[%emt 0:01:14]} 31. Qd7 {[%emt 0:00:44]} Rf8 {[%emt 0:03:30]} 32. Re2 {[%emt 0:03:53]} ({Better is} 32. Rd4 $16) 32... Rxb2 $14 {[%emt 0:11:59]} 33. Rxb2 {[%emt 0:01:18]} Qxb2 {[%emt 0:00:13]} 34. Qd5+ {[%emt 0:00:39]} Kh8 {[%emt 0:00:25]} 35. Qxa5 {[%emt 0:00:27]} Rg8 {[%emt 0:02:12]} 36. g3 {[%emt 0:07:03]} (36. Qd2 {simplifies} Qxd2 37. Rxd2 Kg7 38. Ra2) 36... Qe2 {[%emt 0:02:40]} 37. Re1 {[%emt 0:00:59]} (37. Qd2 {simplifies} Qxd2 38. Rxd2 Kg7 39. Kg2) 37... Qf3 {[%emt 0:00:07]} 38. Qd2 {[%emt 0:00:32]} Re8 {[%emt 0:01:40]} 39. Qd4 {[%emt 0:03:39]} Re4 {[%emt 0:04:32]} 40. Qb2 {[%emt 0:02:26]} Kg7 {[%emt 0:04:32]} 41. Qf2 {[%emt 0:55:30]} Qxf2+ {[%emt 0:50:10]} 42. Kxf2 {[%emt 0:00:06]} Ra4 {[%emt 0:00:22]} 43. Kf3 {[%emt 0:00:09]} h5 {[%emt 0:00:11]} 44. Rd1 {[%emt 0:00:15]} Ra2 {[%emt 0:00:24]} 45. h3 {[%emt 0:00:09]} Kg6 {[%emt 0:00:13]} 46. Rd4 {[%emt 0:00:25]} Rh2 {[%emt 0:01:40]} 47. Ra4 {[%emt 0:00:45]} Rh1 {[%emt 0:00:23]} 48. Kg2 {[%emt 0:00:33]} Re1 {[%emt 0:00:12]} 49. Kf2 {[%emt 0:00:14]} Rb1 {[%emt 0:00:05]} 50. h4 {[%emt 0:00:32]} Rb2+ {[%emt 0:00:35]} 51. Kf3 {[%emt 0:00:06]} Rh2 {[%emt 0:00:33]} 52. Ra5 {[%emt 0:01:05]} Rh1 {[%emt 0:01:48]} 53. Kg2 {[%emt 0:00:18]} Re1 {[%emt 0:00:08]} 54. Kf3 {[%emt 0:00:06]} Rh1 $1 {[%emt 0:00:05]} 55. Kg2 {[%emt 0:00:02]} Re1 $1 {[%emt 0:00:05]} 56. Kf3 {[%emt 0:00:03]} (56. Kf2 $14 Rc1 57. Ra2) 1/2-1/2

[Event "German Bundesliga 2023-24"]
[Site "Germany"]
[Date "2024.02.23"]
[Round "9.10"]
[White "Shengelia, David"]
[Black "Huschenbeth, Niclas"]
[Result "1/2-1/2"]
[ECO "E53"]
[WhiteElo "2494"]
[BlackElo "2605"]
[Annotator "TA"]
[PlyCount "61"]
[EventDate "2023.10.20"]
[EventType "team-tourn"]
[EventCountry "GER"]
[SourceTitle "playchess.com"]
[Source "ChessBase"]
[SourceQuality "1"]
[TimeControl "40/6000+30:3000+30"]

{[%evp 12,61,6,0,19,16,21,11,18,10,10,20,24,20,26,22,28,12,28,16,20,8,18,18,5,0,0,0,15,0,20,0,6,0,0,0,0,0,0,0,0,0,0,0,0,0,18,-1295,0,-64,0,0]} 1. d4 {[%emt 0:00:05]} Nf6 {[%emt 0:00:05]} 2. c4 {[%emt 0:00:08]} e6 {[%emt 0:00:04]} 3. Nc3 {[%emt 0:00:23]} Bb4 {[%emt 0:00:31]} 4. e3 {[%emt 0:00:08]} O-O {[%emt 0:00:41]} 5. Nf3 {[%emt 0:00:11]} c5 {[%emt 0:05:48]} 6. Bd3 {[%emt 0:03:56]} d5 {[%emt 0:01:02]} 7. cxd5 {[%emt 0:02:53]} exd5 {[%emt 0:02:13]} 8. dxc5 {[%emt 0:00:37]} Bg4 {[%emt 0:01:36]} 9. O-O {[%emt 0:05:58]} Nbd7 {[%emt 0:01:05]} 10. Na4 {[%emt 0:04:50]} Nxc5 {[%emt 0:05:50]} 11. Nxc5 {[%emt 0:00:47]} Bxc5 {[%emt 0:00:07]} 12. h3 {[%emt 0:02:09]} Bh5 {[%emt 0:01:29]} 13. b3 {[%emt 0:07:05]} Qe7 {[%emt 0:12:13]} 14. Bb2 {[%emt 0:15:32]} Ne4 {[%emt 0:03:56]} 15. Be2 {[%emt 0:06:12]} Rad8 {[%emt 0:05:53]} 16. Nd4 {[%emt 0:07:25][%cal Bf3d4,Bd4e2,Be2g3,Bg3e4,Be4f6][%mdl 32]} Bg6 {[%emt 0:00:39]} 17. Rc1 {[%emt 0:01:04]} a6 {[%emt 0:04:33]} 18. Bd3 {[%emt 0:15:07]} Bd6 {[%emt 0:08:04]} 19. Ne2 {[%emt 0:11:35]} Rfe8 {[%emt 0:25:58]} 20. Bd4 {[%emt 0:01:22]} Qg5 {[%emt 0:10:39]} 21. f4 {[%emt 0:11:56]} (21. f3 $5 Nf6 22. Qd2 $11) 21... Qe7 {[%emt 0:01:17]} 22. Bxe4 {[%emt 0:09:05]} (22. Nc3 {feels hotter.} Ng3 23. Rf3 Qh4 24. Qe1) 22... Bxe4 {[%emt 0:01:18]} 23. Ng3 {[%emt 0:00:04]} Ba3 {[%emt 0:04:11]} 24. Nxe4 {[%emt 0:03:20] [#] Hoping for Bc5.} Bxc1 {[%emt 0:04:19]} 25. Nf6+ $1 {[%emt 0:00:03]} gxf6 {[%emt 0:00:05]} 26. Qg4+ {[%emt 0:00:03]} Kh8 {[%emt 0:00:14]} 27. Rxc1 {[%emt 0:00:04][%cal Oc1c7] Black must now prevent Rc7!} Rd6 $1 {[%emt 0:05:41]} 28. Kh2 {[%emt 0:00:08]} Rg8 {[%emt 0:02:47] [#]} 29. Kh1 $2 {[%emt 0:02:00][%mdl 8192]} Rg6 $2 {[%emt 0:00:04]} (29... Rxg4 $19 30. hxg4 Rc6) 30. Qf5 (30. Qc8+ $1 $11 Kg7 31. g4) 30... Rd8 {[%emt 0:00:08]} (30... Qe4 $15 31. Qxe4 dxe4) 31. Rc8 {[%emt 0:00:06] Weighted Error Value: White=0.34/Black=0.27 (precise) .  Loses game:     	White=1     	---        Missed win:     	---       	Black=1      Mistake:       	White=1     	---        OK:         	White=9     	Black=11     Best:        	White=2     	---        Strong:       	White=1     	Black=1} 1/2-1/2

[Event "German Bundesliga 2023-24"]
[Site "Germany"]
[Date "2024.02.23"]
[Round "9.11"]
[White "Idani, Pouya"]
[Black "Kindermann, Stefan"]
[Result "1-0"]
[ECO "C02"]
[WhiteElo "2633"]
[BlackElo "2444"]
[Annotator "TA"]
[PlyCount "93"]
[EventDate "2023.10.20"]
[EventType "team-tourn"]
[EventCountry "GER"]
[SourceTitle "playchess.com"]
[Source "ChessBase"]
[SourceQuality "1"]
[TimeControl "40/6000+30:3000+30"]

{[%evp 31,93,-13,-12,-12,21,20,23,21,21,13,8,8,29,23,27,0,10,-2,-15,-21,0,0,0,0,0,0,30,0,0,0,29,41,35,39,46,21,68,22,33,-10,-31,-37,-16,-31,0,0,191,0,70,0,0,0,0,0,1297,1269,29990,29991,29992,29992,29995,29996,29996,29997]} 1. e4 {[%emt 0:00:03]} e6 {[%emt 0:00:10]} 2. d4 {[%emt 0:00:05]} d5 {[%emt 0:00:05]} 3. e5 {[%emt 0:00:02]} c5 {[%emt 0:00:11]} 4. c3 {[%emt 0:00:05]} Nc6 {[%emt 0:00:08]} 5. Nf3 {[%emt 0:00:04]} Bd7 {[%emt 0:00:22]} 6. Be2 {[%emt 0:00:06]} Nge7 {[%emt 0:00:55]} 7. O-O {[%emt 0:00:06]} cxd4 {[%emt 0:01:49]} 8. cxd4 {[%emt 0:00:11]} Nf5 {[%emt 0:00:13]} 9. Nc3 {[%emt 0:00:04]} Rc8 {[%emt 0:01:50]} 10. Kh1 {[%emt 0:02:08]} a6 {[%emt 0:02:32] C02: French: Advance Variation.} 11. a3 {[%emt 0:03:30]} h5 {[%emt 0:16:40]} 12. Be3 $146 {[%emt 0:03:30]} ({Predecessor:} 12. Bg5 Be7 13. Bxe7 Qxe7 14. Na4 O-O 15. Nc5 Be8 16. b4 a5 17. Qd2 b6 18. Na6 axb4 19. Nxb4 {0-1 Schneider,J (2208)-Kosic,D (2443) Oberliga Bayern 1920 2019 (1.1)}) 12... Be7 {[%emt 0:09:39]} 13. Bd3 {[%emt 0:03:51]} g6 {[%emt 0:08:11]} 14. Bxf5 {[%emt 0:22:02]} gxf5 {[%emt 0:00:12]} 15. Ne1 {[%emt 0:00:17]} Na5 {[%emt 0:02:00]} 16. Nd3 {[%emt 0:00:30]} Qb6 {[%emt 0:06:36]} 17. Rb1 {[%emt 0:25:56]} Bb5 {[%emt 0:04:29]} 18. Nxb5 {[%emt 0:02:38]} Qxb5 {[%emt 0:00:25]} 19. b4 {[%emt 0:00:07]} Nc4 $1 {[%emt 0:01:56]} 20. a4 {[%emt 0:00:07]} Qc6 {[%emt 0:05:26]} 21. Bc1 {[%emt 0:05:20]} Nb6 {[%emt 0:04:11]} 22. Nc5 {[%emt 0:03:59]} Nc4 {[%emt 0:08:50]} 23. Qf3 {[%emt 0:05:22]} h4 {[%emt 0:00:43]} 24. g4 {[%emt 0:03:33]} hxg3 {[%emt 0:03:08]} 25. fxg3 {[%emt 0:05:27]} b6 {[%emt 0:08:44]} 26. b5 {[%emt 0:00:07]} axb5 {[%emt 0:00:10]} 27. axb5 {[%emt 0:00:04]} Qa8 {[%emt 0:00:51]} 28. Na6 {[%emt 0:00:06]} Kd7 {[%emt 0:00:46]} 29. Ra1 {[%emt 0:07:01]} Qb7 {[%emt 0:00:29]} 30. Ra2 {[%emt 0:02:49]} f6 {[%emt 0:10:50]} 31. exf6 $1 {[%emt 0:00:33]} Bxf6 {[%emt 0:00:06]} 32. Bf4 {[%emt 0:05:48]} Bxd4 {[%emt 0:01:52]} 33. Nb4 {[%emt 0:04:18]} Na5 {[%emt 0:01:50]} (33... Rc5 $1 $11) 34. Rd1 {[%emt 0:01:28]} (34. Re2 $14) 34... Rc4 {[%emt 0:00:58]} 35. Nc6 {[%emt 0:01:46]} Nxc6 {[%emt 0:02:30]} 36. bxc6+ {[%emt 0:00:05]} Qxc6 {[%emt 0:01:03]} (36... Kxc6 $2 37. Rxd4 Rxd4 38. Qc3+ Rc4 39. Qxh8 $18) 37. Ra7+ {[%emt 0:01:12]} Ke8 {[%emt 0:00:34]} 38. Re1 {[%emt 0:03:07]} (38. Rc7 $5 Qa4 $8 39. Rxd4 $11) 38... Kf8 $2 {[%emt 0:04:34] [#]} (38... Bc3 $11 39. Rc7 Bxe1 40. Rxc6 Rxc6) 39. Rc7 $2 {[%emt 0:00:48]} (39. Qe2 $1 $18 {[%cal Re2e6]}) 39... Qa4 {[%emt 0:02:11]} (39... Rc2 $2 40. h4 Qa4 41. Qd1 $18 (41. Rxe6 Qa1+)) (39... Qe8 $1 $11) 40. Bd6+ {[%emt 0:01:39]} (40. Rxe6 Qa1+) (40. Rb7 $1 $14 Bf6 41. Rb8+ (41. Rxb6 Re4 $11) (41. Rxe6 Qa1+ 42. Kg2 Rc2+ 43. Re2 Qa2 $11) 41... Ke7 (41... Kf7 $2 42. Rxh8 Bxh8 43. Qh5+ Ke7 44. Qh7+ Kd8 45. Qxh8+ Kd7 46. Qg7+ Kc6 47. Rxe6+ Kb5 48. Qd7+ Ka6 49. Qxd5 $18) 42. Qxd5 (42. Rxb6 Re4 $11)) 40... Kg8 $11 {[%emt 0:00:14]} 41. Rb7 $1 {[%emt 0:15:20]} Qc6 {[%emt 0:14:00]} 42. Rb8+ {[%emt 0:02:51]} Kg7 $2 {[%emt 0:01:16][%mdl 8192]} (42... Kf7 $11 43. Rxh8 Bxh8 44. Qh5+ Kg8 45. Qg6+ (45. Rxe6 $2 {too greedy.} d4+ 46. Kg1 Rc1+ 47. Kf2 Rc2+ 48. Re2 Rxe2+ 49. Kxe2 d3+ 50. Kxd3 Qxd6+ $19) 45... Bg7 46. Qxe6+ Kh8 47. Qxf5 d4+ 48. Re4 (48. Kg1 Rc1 $11) 48... Rc1+ 49. Kg2 Re1 (49... Rc2+ $2 50. Kh3 $18) 50. Qh3+ Kg8 51. Qe6+ Kh7 (51... Kh8 52. Qh3+ Kg8 53. Qe6+ Kh7 54. Qh3+ Kg8 $11) 52. Qh3+ Bh6 53. Qf5+ Kg7 54. Be5+ Kg8 55. Qg4+ Kh7 56. Qf5+ Kg8 57. Qg4+ Kh7 58. Qf5+ Kg8) 43. Rxh8 $18 {[%emt 0:02:24]} Rc1 {[%emt 0:05:33]} 44. Qh5 {[%emt 0:03:54]} Rxe1+ {[%emt 0:00:24]} 45. Kg2 {[%emt 0:00:03]} Qxd6 {[%emt 0:01:28]} 46. Qh6+ {[%emt 0:00:48]} Kf7 {[%emt 0:00:06]} 47. Rh7+ {[%emt 0:00:04]} 1-0